Cogmind - Beta 13 *** ADVENTURER MODE // 2024.04.01 @ 15:37:51 Player: Icepick Result: Destroyed by P-60 Hacker with Shock Rifle Performance ------------- Evolutions (3) 1500 Regions Visited (5) 1000 Robots Destroyed (110) 550 Value Destroyed (2838) 2838 Prototype IDs (2) 40 Alien Tech Used (0) 0 Bonus (64) 64 TOTAL SCORE: 5992 Bonus ------- Follower Combat Kills 136 Friendly Fire -72 Cogmind --------- Core Integrity 0/700 Matter 291/400 Energy 100/100 System Corruption 10% Temperature Cool (0) Movement Core (850) Ox16 Location -7/Factory Parts ------- > --- POWER (3) -------- (None) > --- PROPULSION (3) --- Improved Aluminum Leg > --- UTILITY (4) ------ High-capacity Storage Unit Medium Matter Pod > --- WEAPON (3) ------- High-powered Shotgun Great Axe > --- INVENTORY (20) --- Advanced Treads Medium Treads Improved Aluminum Leg Gravmag System Cesium-ion Thruster Cesium-ion Thruster Improved Cesium-ion Thruster Improved Heat Sink Improved Heat Sink High-powered Shotgun High-powered Shotgun Peak State ------------ > --- POWER ------------ Deuterium Engine Nuclear Core Light Nuclear Core > --- PROPULSION ------- Medium Treads Medium Treads Medium Treads > --- UTILITY ---------- Improved Heat Sink Improved Heat Sink High-capacity Storage Unit Improved Medium Armor Plating > --- WEAPON ----------- Beam Rifle Minigun Improved Grenade Launcher > --- INVENTORY -------- Light Nuclear Core Armored Treads Advanced Treads Improved Aluminum Leg Improved Aluminum Leg Improved Hover Unit Improved Hover Unit Cesium-ion Thruster Cesium-ion Thruster Improved Heat Sink Improved Heat Sink Shield Generator Shield Generator Light EM Pulse Cannon Light EM Pulse Cannon High-powered Shotgun High-powered Shotgun High-powered Shotgun Improved Grenade Launcher [Rating: 44] Favorites ----------- Power Deuterium Engine Engine Deuterium Engine Power Core Light Nuclear Core Propulsion Improved Hover Unit Treads Medium Treads Leg Aluminum Leg Wheel Wheel Hover Unit Improved Hover Unit Flight Unit Flight Unit Utility High-capacity Storage Unit Device Shield Generator Storage High-capacity Storage Unit Processor Signal Interpreter Hackware System Shield Protection Improved Medium Armor Plating Weapon Light EM Pulse Cannon Energy Gun Beam Rifle Energy Cannon Light EM Pulse Cannon Ballistic Gun Minigun Ballistic Cannon Flak Cannon Launcher Improved Grenade Launcher Special Weapon Welding Torch Impact Weapon Maul Slashing Weapon Great Axe Build | -11 -10 -9 -9 -8 -7 ------- Run | Yrd Mat Mat Min Mat Fac Slots Evolved 6 | . . 2 . 2 2 Power 2 | . . 1 . 1 . Propulsion 1 | . . . . . 1 Utility 2 | . . . . 1 1 Weapon 1 | . . 1 . . . Parts Attached 173 | 10 37 14 . 64 48 Power 21 | 3 3 1 . 10 4 Engine 12 | 3 3 1 . 4 1 Core 9 | . . . . 6 3 Reactor . | . . . . . . Propulsion 52 | 2 7 3 . 20 20 Treads 22 | . 2 . . 10 10 Leg 8 | . 1 3 . 3 1 Wheel 3 | 2 1 . . . . Hover 10 | . . . . 3 7 Flight 9 | . 3 . . 4 2 Utility 32 | 2 10 2 . 10 8 Device 17 | 2 3 . . 6 6 Storage 5 | . 3 1 . . 1 Processor 5 | . 2 1 . 2 . Hackware 1 | . . . . 1 . Protection 4 | . 2 . . 1 1 Artifact . | . . . . . . Weapon 68 | 3 17 8 . 24 16 Energy Gun 10 | . 3 2 . 3 2 Energy Cannon 14 | . 6 3 . 1 4 Ballistic Gun 22 | 3 3 1 . 10 5 Ballistic Cannon 5 | . . . . 4 1 Launcher 11 | . 3 . . 6 2 Special Weapon 3 | . 2 1 . . . Impact Weapon 1 | . . 1 . . . Slashing Weapon 2 | . . . . . 2 Piercing Weapon . | . . . . . . Special Melee Weapon . | . . . . . . Unidentified Prototypes 2 | . . 1 . . 1 Corrupted Parts 2 | . . 2 . . . System Corruption 4 | . . 4 . . . Parts Lost 28 | . 2 . . . 26 Power 7 | . . . . . 7 Propulsion 6 | . 1 . . . 5 Utility 8 | . 1 . . . 7 Weapon 7 | . . . . . 7 Highest Loss Streak 11 | . 2 . . . 11 To Critical Strikes . | . . . . . . Average Slot Usage (%) 84 | . 78 88 100 96 73 Engine 11 | . 6 13 22 18 4 Core 5 | . . . . 7 8 Treads 8 | . 9 5 . 11 6 Leg 3 | . . 14 22 3 . Hover 4 | . . . . . 11 Flight 1 | . 8 . . . . Device 6 | . 6 1 . 7 8 Storage 9 | . 10 10 11 9 8 Processor 3 | . 6 10 11 2 . Hackware 2 | . . . . 5 . Protection 1 | . 3 . . 1 3 Energy Gun 4 | . 7 3 11 5 2 Energy Cannon 8 | . 3 21 22 9 3 Ballistic Gun 3 | . 3 . . 4 3 Ballistic Cannon 3 | . . . . 5 3 Launcher 1 | . . . . 1 2 Special Weapon 1 | . 9 1 . . . Naked Turns . | . . . . . . Heaviest Build 89 | 8 34 59 59 82 89 Greatest Support 84 | 20 40 40 20 51 84 Greatest Overweight (x) 27 | . 4 5 2 27 26 Average Overweight (x) 1 | . 1 1 2 1 3 Largest Inventory Capacity 20 | 5 15 20 20 20 20 Average Capacity 17 | 5 9 19 20 20 20 Most Carried 20 | 5 9 10 9 20 20 Average Carried 13 | 1 4 8 9 15 18 Final Capacity 20 | 5 15 20 20 20 20 Final Carried 18 | 2 7 9 9 18 11 Class Distribution -------------------- 24% | Mutant 21% | Scavenger-Mutant 21% | Hacker-Tank 16% | Tank 6% | Scavenger-Gunner 5% | Scavenger-Tank Dominant Class ---------------- Mutant | -10/Materials Mutant | -9/Materials Scavenger-Gunner | -9/Mines Hacker-Tank | -8/Materials Scavenger-Mutant | -7/Factory Resources | -11 -10 -9 -9 -8 -7 ----------- Run | Yrd Mat Mat Min Mat Fac Matter Collected 2547 | 318 399 116 . 754 960 Remotely 40 | . 40 . . . . Salvage Created 3639 | 71 853 310 52 1189 1164 Parts 233 | 5 43 17 7 57 104 Haulers Intercepted 4 | . 1 1 . 2 . Recyclers Shooed 3 | . 1 . . 2 . Parts Field Recycled . | . . . . . . Retrieved Matter . | . . . . . . Parts Self-Destructed . | . . . . . . Prevented . | . . . . . . Kills | -11 -10 -9 -9 -8 -7 ------- Run | Yrd Mat Mat Min Mat Fac Combat Hostiles Destroyed 57 | 1 6 8 3 20 19 Melee 3 | . . . . . 3 Guns 15 | 1 5 . . 3 6 Cannons 16 | . . 4 1 7 4 AOE 19 | . . 3 2 9 5 Classes Destroyed 13 | 2 5 1 . 3 2 Worker 15 | 1 5 1 . 3 5 Builder 15 | . 3 . . 1 11 Tunneler 1 | . . . . . 1 Hauler 4 | . 1 1 . 2 . Recycler 10 | . 5 . . 3 2 Watcher 7 | . 1 . . 4 2 Swarmer 13 | . 2 4 3 3 1 Grunt 24 | 1 4 3 . 12 4 Duelist 2 | . . . . 1 1 Sentry 7 | . . 1 . 3 3 Hunter 5 | . . . . 1 4 Programmer 6 | . . . . . 6 Zionite 1 | . . . . 1 . Best Kill Streak 7 | 1 4 5 3 6 7 Combat Bots Only 5 | 1 2 5 3 4 5 Max Kills in Single Turn 5 | 1 2 2 2 5 5 Gunslinging . | . . . . . . Exploded 3 | . . 2 2 3 3 Melee 1 | . . . . . 1 Uniques/NPCs Destroyed . | . . . . . . Combat | -11 -10 -9 -9 -8 -7 -------- Run | Yrd Mat Mat Min Mat Fac Hostile Shots Fired 655 | 3 66 67 4 63 452 Missed 182 | . 12 14 . 16 140 Damage Taken 4744 | 25 505 391 20 599 3204 Core 961 | . 101 60 . 91 709 Absorbed by Shields 392 | . . . . 220 172 Ignored by Resistances 1516 | 7 151 127 8 228 995 Core Remaining (%) 81 | 100 59 . 85 83 . Volleys Fired 212 | 11 70 20 2 38 71 Largest 3 | 2 2 3 3 3 3 Hottest 168 | 40 112 168 157 157 153 Shots Fired 413 | 18 105 38 6 108 138 Gun 237 | 18 97 1 2 43 76 Cannon 144 | . 2 32 4 56 50 Launcher 21 | . . . . 9 12 Special 11 | . 6 5 . . . Kinetic 166 | 18 56 . . 39 53 Thermal 72 | . 6 5 . 12 49 Explosive 21 | . . . . 9 12 Electromagnetic 154 | . 43 33 6 48 24 Robot Hit Streak 43 | 8 17 10 2 29 43 Robot Miss Streak 7 | 1 3 3 3 5 7 Penetration Max . | . . . . . . Secondary Targets . | . . . . . . Shots Hit Robots 296 | 14 77 21 3 69 112 Core Hits 196 | 5 34 13 4 65 75 Critical Kills . | . . . . . . Critical Parts Destroyed 1 | . 1 . . . . Critical Strikes 4 | . 1 1 . . 2 Burn 1 | . . . . . 1 Destroy 1 | . 1 . . . . Corrupt 2 | . . 1 . . 1 Melee Attacks 9 | . . 6 . . 3 Impact 6 | . . 6 . . . Slashing 3 | . . . . . 3 Piercing . | . . . . . . Sneak Attacks . | . . . . . . Combat Hostiles . | . . . . . . Follow-up Attacks . | . . . . . . Damage Inflicted 8530 | 107 925 735 112 2832 3819 Guns 2527 | 107 762 . 7 525 1126 Cannons 2526 | . 23 469 39 827 1168 Explosions 3154 | . 124 262 66 1452 1250 Melee 110 | . . . . . 110 Ramming 207 | . 10 4 . 28 165 Kinetic 1810 | 107 317 . . 492 894 Thermal 3039 | . 130 262 66 916 1665 Explosive 1324 | . . . . 677 647 Electromagnetic 2040 | . 468 469 46 719 338 Impact . | . . . . . . Slashing 110 | . . . . . 110 Piercing . | . . . . . . Highest Corruption 9 | . . 4 4 . 9 Average Corruption 4 | . . 3 4 . 4 Corruption Purged . | . . . . . . Corruption Blocked . | . . . . . . Effects 88 | . . 15 6 . 67 Message Errors 17 | . . 2 1 . 14 Matter Fused 17 | . . 3 2 . 12 Heat Flow Errors 12 | . . 2 1 . 9 Energy Discharges 9 | . . 2 . . 7 Parts Rejected 2 | . . 1 . . 1 Parts Fused 4 | . . 1 . . 3 Data Loss (minor) 18 | . . 2 . . 16 Data Loss (major) 4 | . . 1 1 . 2 Misfires 1 | . . . . . 1 Alerts 3 | . . 1 1 . 1 Weapon Failures 1 | . . . . . 1 Overload Shots . | . . . . . . Overflow Damage 224 | . . . . 48 176 Projectiles 1 | . . . . 1 . Explosions 189 | . . . . 47 142 Melee 34 | . . . . . 34 Knockbacks 5 | . . . . 2 3 Impact 1 | . . . . . 1 Kinetic 4 | . . . . 2 2 Secondary . | . . . . . . Self-Inflicted Damage 430 | . 28 12 . 247 143 Shots 11 | . 1 1 . 4 5 Rammed 43 | . 3 . . 5 35 Targets Rammed 44 | . 3 1 . 5 35 Kicked 1 | . . 1 . . . Crushed . | . . . . . . Highest Temperature 476 | 6 81 153 278 476 258 Average Temperature 87 | 6 35 50 152 114 59 Received Heat Transfer 1095 | 18 273 111 . 156 537 Effects 8 | . . . 2 6 . Shutdowns 2 | . . . . 2 . Energy Bleed 3 | . . . . 3 . Interference 2 | . . . 2 . . Matter Decay 1 | . . . . 1 . Siege Activations . | . . . . . . Robots Corrupted 4 | . 1 1 . 1 1 Combat Hostiles 4 | . 1 1 . 1 1 Parts Fried 13 | . 5 3 . 3 2 Impact Corruptions 3 | . . . . . 3 Robots Melted . | . . . . . . Combat Hostiles . | . . . . . . Parts Melted 6 | . 1 . . 1 4 Heat Transferred 3676 | . 250 300 100 920 2106 Parts Sabotaged . | . . . . . . Parts Stolen . | . . . . . . Parts Stripped . | . . . . . . Power Chain Reactions 10 | . 3 3 1 3 . Alert | -11 -10 -9 -9 -8 -7 ------- Run | Yrd Mat Mat Min Mat Fac Peak Influence 277 | 25 98 147 175 277 201 Initial 57 | . 13 31 . 57 29 Average 52 | 14 41 24 102 85 37 Maximum Alert Level 1 | . . . . 1 1 Low Security (%) 95 | 100 100 100 100 91 95 Level 1 4 | . . . . 8 4 Level 2 . | . . . . . . Level 3 . | . . . . . . Level 4 . | . . . . . . Level 5 . | . . . . . . High Security . | . . . . . . Max Security . | . . . . . . Squads Dispatched 12 | . . . . 1 11 Investigation 2 | . . . . 1 1 Extermination 7 | . . . . . 7 Reinforcement 3 | . . . . . 3 Assault . | . . . . . . Garrison . | . . . . . . Intercept . | . . . . . . Searches Triggered . | . . . . . . Construction Impeded 3 | . . . . . 3 Haulers Reinforced . | . . . . . . Active Scanning Responses . | . . . . . . Cargo Convoy Interrupts . | . . . . . . Stealth | -11 -10 -9 -9 -8 -7 --------- Run | Yrd Mat Mat Min Mat Fac Distress Signals 8 | . 2 1 . 4 1 Communications Jammed . | . . . . . . Distress Signals . | . . . . . . Times Spotted 87 | 1 15 8 3 31 29 Peak Tracking Total 7 | 1 3 5 3 5 7 Tactical Retreats 1 | . 1 . . . . Traps | -11 -10 -9 -9 -8 -7 ------- Run | Yrd Mat Mat Min Mat Fac Traps Triggered 3 | . 2 . . 1 . Indirectly . | . . . . . . Trap Hack Attempts . | . . . . . . Triggered . | . . . . . . Disarmed . | . . . . . . Reprogrammed . | . . . . . . Reused . | . . . . . . Traps Extracted . | . . . . . . Installed . | . . . . . . Triggered . | . . . . . . Machines | -11 -10 -9 -9 -8 -7 ---------- Run | Yrd Mat Mat Min Mat Fac Machines Disabled 22 | . 3 . 9 6 4 Max in Single Turn 9 | . 2 . 9 6 3 Machines Repaired . | . . . . . . Machines Dismantled . | . . . . . . Machines Sabotaged . | . . . . . . Overloaded Fab Kills . | . . . . . . Hacking | -11 -10 -9 -9 -8 -7 --------- Run | Yrd Mat Mat Min Mat Fac Machines Accessed 5 | . 2 . . 1 2 Terminals 4 | . 1 . . 1 2 Fabricators . | . . . . . . Repair Stations 1 | . 1 . . . . Recycling Units . | . . . . . . Scanalyzers . | . . . . . . Garrison Access . | . . . . . . Total Hacks 14 | . 4 . . 5 5 Successful 9 | . 4 . . 1 4 Failed 5 | . . . . 4 1 Catastrophic 1 | . . . . . 1 Database Lockouts . | . . . . . . Manual 9 | . 2 . . 5 2 Terminals 13 | . 3 . . 5 5 Fabricators . | . . . . . . Repair Stations 1 | . 1 . . . . Recycling Units . | . . . . . . Scanalyzers . | . . . . . . Garrison Access . | . . . . . . Terminal Hacks 8 | . 3 . . 1 4 Record 3 | . 3 . . . . Open DSF 1 | . . . . . 1 Terminal Index 1 | . . . . . 1 Unreport Threat 1 | . . . . 1 . Dispatch Records 1 | . . . . . 1 Registered Prototypes 1 | . . . . . 1 Fabricator Hacks . | . . . . . . Repair Station Hacks 1 | . 1 . . . . Scan Component 1 | . 1 . . . . Recycling Unit Hacks . | . . . . . . Scanalyzer . | . . . . . . Garrison Access Hacks . | . . . . . . Unauthorized Hacks . | . . . . . . Terminals . | . . . . . . Fabricators . | . . . . . . Repair Stations . | . . . . . . Recycling Units . | . . . . . . Scanalyzers . | . . . . . . Garrison Access . | . . . . . . Data Cores Recovered . | . . . . . . Used . | . . . . . . Hacking Detections 3 | . 2 . . . 1 Full Trace Events 1 | . . . . . 1 Feedback Events . | . . . . . . Feedback Blocked . | . . . . . . Robot Schematics Acquired . | . . . . . . Robots Built . | . . . . . . Authchips . | . . . . . . Time . | . . . . . . Total Robot Build Rating . | . . . . . . Part Schematics Acquired . | . . . . . . Parts Built . | . . . . . . Authchips . | . . . . . . Time . | . . . . . . Total Part Build Rating . | . . . . . . Parts Repaired . | . . . . . . Time . | . . . . . . Parts Recycled . | . . . . . . Recycled Matter . | . . . . . . Retrieved Matter . | . . . . . . Retrieved Components . | . . . . . . Parts Scanalyzed . | . . . . . . Part Schematics Acquired . | . . . . . . Parts Damaged . | . . . . . . Bothacking | -11 -10 -9 -9 -8 -7 ------------ Run | Yrd Mat Mat Min Mat Fac Used RIF Installer . | . . . . . . Robots Hacked . | . . . . . . Non-combat . | . . . . . . Combat . | . . . . . . Robot Hacks Applied . | . . . . . . Relay Couplers Released . | . . . . . . Fabnet Peak Effective % . | . . . . . . Robots Rewired . | . . . . . . Allies Hacked . | . . . . . . Hacks Repelled . | . . . . . . Allies | -11 -10 -9 -9 -8 -7 -------- Run | Yrd Mat Mat Min Mat Fac Total Allies 2 | . . . 2 . . Largest Group 2 | . . . 2 2 . Highest-Rated Group 42 | . . . 42 42 . Highest-Rated Ally 31 | . . . 31 31 . Total Orders . | . . . . . . Ally Attacks 39 | . . . . 39 . Total Damage 673 | . . . . 673 . Kills 8 | . . . . 8 . Allies Corrupted . | . . . . . . Allies Melted . | . . . . . . Intel | -11 -10 -9 -9 -8 -7 ------- Run | Yrd Mat Mat Min Mat Fac Robot Analysis Total . | . . . . . . Derelict Logs Recovered 1 | . . . 1 . . Drone Launches . | . . . . . . Drone Recoveries . | . . . . . . Exploration | -11 -10 -9 -9 -8 -7 ------------- Run | Yrd Mat Mat Min Mat Fac Turns Passed 9256 | 289 1592 1066 246 2950 3113 Spaces Moved 3475 | 312 759 381 93 995 935 Core 147 | 30 19 . . 12 86 Treads 1635 | . 287 144 . 747 457 Legs 550 | . 19 237 93 201 . Wheels 352 | 282 70 . . . . Hover 412 | . . . . 20 392 Flight 379 | . 364 . . 15 . Fastest Speed 40 | 50 40 160 260 232 158 Average Speed 236 | 77 178 252 260 270 292 Slowest Speed 1560 | 80 280 470 260 1560 1350 Overloaded Moves . | . . . . . . Propulsion Burnouts . | . . . . . . Robots Hopped . | . . . . . . Cave-ins Triggered . | . . . . . . Exploration Rate (%) 33 | 8 77 22 32 51 11 Regions Visited 5 Branch Regions 1 Pre-discovered Areas . | . . . . . . Known Exits Taken 1 | . 1 . . . . Unknown Exits Taken 4 | 1 . 1 1 1 . Scrap Searched . | . . . . . . Spaces Dug 6 | . . 6 . . . Terrain Destroyed 184 | . 4 16 27 75 62 Melee 6 | . . 6 . . . Projectile 2 | . . . . . 2 AOE 176 | . 4 10 27 75 60 Terrain Rammed . | . . . . . . Walls Destroyed . | . . . . . . Machines Disabled . | . . . . . . Actions | -11 -10 -9 -9 -8 -7 --------- Run | Yrd Mat Mat Min Mat Fac Total 4080 | 344 900 433 94 1189 1120 Wait 14 | 8 . . . 6 . Move 3470 | 311 758 380 92 994 935 Hop . | . . . . . . Pick Up 1 | . . . . 1 . Fast Attach 108 | 6 31 10 . 37 24 Attach 60 | 3 5 4 . 25 23 Detach 107 | 4 19 9 . 56 19 Swap 5 | 1 1 . . 2 1 Drop 50 | . 13 3 . 25 9 Fire 212 | 11 70 20 2 38 71 Melee 9 | . . 6 . . 3 Ram 12 | . 2 . . . 10 Kick 1 | . . 1 . . . Crush 31 | . 1 . . 5 25 Escape Stasis . | . . . . . . Rewire . | . . . . . . Trap . | . . . . . . Miscellaneous . | . . . . . . Route ------- -11/Scrapyard -10/Materials (discovered 4 exits: *Mat x2 / [*Min] / [*Sub]) -9/Materials -9/Mines -8/Materials -7/Factory History --------- Turn | Location | Event 2 | -11/Scrapyard | Met Revision 17 96 | -11/Scrapyard | Discovered new exit (range 8) 290 | -11/Scrapyard | Entered Materials 339 | -10/Materials | Build established: Mutant 376 | -10/Materials | Met 8R-AWN 668 | -10/Materials | Discovered new exit (range 15) 1254 | -10/Materials | Discovered new exit (range 9) 1320 | -10/Materials | Discovered new exit (range 3) 1323 | -10/Materials | Identified exit to Materials 1667 | -10/Materials | Build established: Scavenger-Mutant 1821 | -10/Materials | Discovered exit to Materials (range 4) 1882 | -10/Materials | Entered another Materials area 1882 | -9/Materials | Evolved 2 slots: Power x1, Weapon x1 2327 | -9/Materials | Build established: Mutant 2756 | -9/Materials | Discovered new exit (range 9) 2948 | -9/Materials | Entered Mines 2964 | -9/Mines | Learned 2 Materials zone layouts 2998 | -9/Mines | Build established: Scavenger-Gunner 3150 | -9/Mines | Discovered new exit (range 7) 3194 | -9/Mines | Entered Materials 3194 | -8/Materials | Accompanied by 2 allies 3194 | -8/Materials | Evolved 2 slots: Power x1, Utility x1 3199 | -8/Materials | Led the pair of lost Derelicts to an unsafe place 3983 | -8/Materials | Build established: Tank 4455 | -8/Materials | Build established: Hacker-Tank 5993 | -8/Materials | Discovered new exit (range 14) 6144 | -8/Materials | Entered Factory 6144 | -7/Factory | Evolved 2 slots: Propulsion x1, Utility x1 6713 | -7/Factory | Build established: Tank 7870 | -7/Factory | Build established: Scavenger-Mutant 8417 | -7/Factory | Core integrity fell below 50% 8419 | -7/Factory | Lost 4 parts (1p2n1w) 9194 | -7/Factory | Core integrity fell below 20% 9257 | -7/Factory | Destroyed by P-60 Hacker with Shock Rifle Last Messages --------------- U-05 Engineer lays Concrete. U-05 Engineer builds a Wall. U-05 Engineer lays Concrete. U-05 Engineer builds a Wall. U-05 Engineer lays Concrete. Imp. Heat Sink destroyed. U-05 Engineer lays Concrete. Acquired 30 matter. U-05 Engineer lays Concrete. U-05 Engineer builds a Wall. System corrupted: Heat flow error (+153). U-05 Engineer builds a Door. U-05 Engineer builds a Wall. U-05 Engineer lays Concrete. Shield Generator destroyed. U-05 Engineer lays Concrete. U-05 Engineer destroyed. FNQJX3HJSKI799BOLS&7|PY:FD#T GYT:AZD [Achievement: First Step to Greatness] [Achievement: 5k Club] Map ----- +----------------------------------------------------+ | ?????????????????????#######?#!! + | | ??????????????????????? # * # | | ?????????????????????" """ #!= # | | ????????????????????"" """ # # | | ????????????????# """ """ # ! # | | ?????????????????? # !!= # | | ?????????????????????" """ + = * # | | ?????????????????????" """ # ! # | | ?????????????????? """ """ + # | | ????????????????# # # | | ????????????????# ! # # | | ????????????????# # | | ????????????????# # | | ?????????????????############# | | ????????????????????????????## | | ????????????????????????????##! ! | | ????????????????################+########### # | | ????????????????# # # # # | | ????????????????# ######## # # | | ????????????????# #??????# # # | | ????????????????# #??????### # | | ????????????????# #???????## # | | ????????????????#! #????????# # | | ????????????????# %! #????????# # | | ????????????????####/####/#############" "## # | | ???????????????##### = @%= ? | | ???????????#" #u% *= ? | | ????????????# """ #u ! """" """"""" """"""" ? | | ?????????????? """ # !p%""""" """"""" "?????" ""? | | ?????????????? """ +=% !""""" """"""?????????? ??? | | ?????????????? # """"""" """""??????????????? | | ????????????? = ]?# ???????????????? | | ????????????#####??# ???????????????? | | ???????????????????# ##""T""## ???????????????? | | ???????????????????# ?#"""?"?? ??????????????? | | ???????????????????#+??##????? ???????????????? | | ??????????????????? ?????????? ????????????????? | | ??????????????????? ?????????? ????????????????? | | ?????????????????????????????? ????????????????? | | ?????????????????????????????? ????????????????? | | ?????????????????????????????? ??????????????????? | | ?????????????????????????????????????????????????? | | ?????????????????????????????????????????????????? | | ?????????????????????????????????????????????????? | | ?????????????????????????????????????????????????? | | ?????????????????????????????????????????????????? | | ?????????????????????????????????????????????????? | | ?????????????????????????????????????????????????? | | ?????????????????????????????????????????????????? | | ?????????????????????????????????????????????????? | +----------------------------------------------------+ Best States ------------- Heat Dissipation 62 Energy Generation 32 Energy Capacity 590 Matter Stores 373 Matter Capacity 400 Sight Range 20 Terrain Scan Range 14 Terrain Scan Density 85 Additional Mass Support 9 Armor Coverage 225 Resistance: KI 20 Resistance: TH 20 Resistance: EX 20 Resistance: EM 20 Resistance: I 20 Resistance: S 20 Resistance: P 20 Core Shielding 20 Utility Shielding 33 Evasion (%) 50 Targeting Accuracy 8 Recoil Reduction 3 Offensive Hacking 10 Defensive Hacking 10 Item Schematics ----------------- None Robot Schematics ------------------ None Fabricated ------------ Nothing Alien Tech Used ----------------- None Achievements -------------- 5k Club Backstab Crack Shot Everything Is Under Control First Step to Greatness Fist Fight Let's See Who's Tougher Loot Pinata Made in Tau Ceti IV One Hack Too Far Oops Power Corrupts Risk Taker Storm Trooper Universal Adapter Challenges ------------ None Game ------ Seed TerrabombFusionRifle Manual? 0 Play Time 01:28:13 Cumulative 2.8 hours Start 2024.03.31 @ 22:34:01 End 2024.04.01 @ 15:37:51 Sessions 3 Manual Loads 0 Difficulty Adventurer Special Mode None Game No. 1 Rogue 0 Adventurer 1 Explorer 0 Win Type - Total 0 Types 0/0/0/0/0/0/0/0/0 Lore% 0 Gallery% 5 Achievement% 5 Wizard Run 0 Options --------- Layout 1 ASCII 0 Keyboard 1 Movement Arrows Keybinds 0 Fullscreen 1 Font 24/Terminus Map View 50x35 Zoom Use 0% Tactical HUD 0 Map Filters NONE Filters NONE Steam 1 RUN: a2acf9ad-c341-48fa-9405-60cff3bf059e